[Event "Titled Tuesday Blitz October 31 Early 2023"]
[White "Nanu, Costica-Ciprian"]
[Black "Kiseleva, Arina"]
[WhiteFideId "1204580"]
[BlackFideId "4164989"]
[WhiteElo "2579"]
[BlackElo "2219"]
[Result "1-0"]
[Round "8"]
[TimeControl "180+1"]
[Date "2023.10.31"]
[WhiteClock "0:00:15"]
[BlackClock "0:00:00"]
[Board "141"]

1. a3 {[%clk 0:03:00]}  a5 {[%clk 0:02:57]} 2. c4 {[%clk 0:03:00]}  a4 {[%clk 0:02:56]} 3. Nc3 {[%clk 0:03:00]}  e5 {[%clk 0:02:55]} 4. Nxa4 {[%clk 0:03:00]}  f5 {[%clk 0:02:51]} 5. Nc3 {[%clk 0:02:56]}  Nf6 {[%clk 0:02:50]} 6. g3 {[%clk 0:02:56]}  Nc6 {[%clk 0:02:46]} 7. Bg2 {[%clk 0:02:56]}  Bc5 {[%clk 0:02:44]} 8. d3 {[%clk 0:02:53]}  O-O {[%clk 0:02:40]} 9. Nf3 {[%clk 0:02:29]}  e4 {[%clk 0:02:26]} 10. dxe4 {[%clk 0:02:20]}  fxe4 {[%clk 0:02:25]} 11. Nxe4 {[%clk 0:02:17]}  Nxe4 {[%clk 0:02:21]} 12. Qd5+ {[%clk 0:02:17]}  Kh8 {[%clk 0:02:20]} 13. Qxe4 {[%clk 0:02:18]}  Re8 {[%clk 0:02:15]} 14. Qc2 {[%clk 0:02:15]}  Qe7 {[%clk 0:01:23]} 15. O-O {[%clk 0:02:01]}  Nd4 {[%clk 0:01:17]} 16. Nxd4 {[%clk 0:02:00]}  Bxd4 {[%clk 0:01:18]} 17. e3 {[%clk 0:01:56]}  Bf6 {[%clk 0:01:18]} 18. Bd2 {[%clk 0:01:55]}  d6 {[%clk 0:01:14]} 19. Bc3 {[%clk 0:01:55]}  c6 {[%clk 0:01:08]} 20. h3 {[%clk 0:01:45]}  Be5 {[%clk 0:01:03]} 21. Bxe5 {[%clk 0:01:40]}  dxe5 {[%clk 0:01:02]} 22. Kh2 {[%clk 0:01:36]}  e4 {[%clk 0:00:58]} 23. b4 {[%clk 0:01:33]}  Bf5 {[%clk 0:00:57]} 24. Rfd1 {[%clk 0:01:33]}  h5 {[%clk 0:00:55]} 25. h4 {[%clk 0:01:30]}  g5 {[%clk 0:00:49]} 26. Qc3+ {[%clk 0:01:28]}  Kh7 {[%clk 0:00:49]} 27. hxg5 {[%clk 0:01:02]}  Qxg5 {[%clk 0:00:48]} 28. Rh1 {[%clk 0:01:01]}  Rad8 {[%clk 0:00:28]} 29. Kg1 {[%clk 0:00:57]}  Rd3 {[%clk 0:00:28]} 30. Qc2 {[%clk 0:00:53]}  Red8 {[%clk 0:00:23]} 31. Qe2 {[%clk 0:00:49]}  Kg6 {[%clk 0:00:21]} 32. Rh4 {[%clk 0:00:35]}  Rd2 {[%clk 0:00:18]} 33. Qe1 {[%clk 0:00:34]}  Qf6 {[%clk 0:00:17]} 34. Rf4 {[%clk 0:00:30]}  Qe5 {[%clk 0:00:15]} 35. a4 {[%clk 0:00:28]}  Kg5 {[%clk 0:00:14]} 36. a5 {[%clk 0:00:24]}  Qd6 {[%clk 0:00:10]} 37. Bxe4 {[%clk 0:00:18]}  Bxe4 {[%clk 0:00:07]} 38. Rxe4 {[%clk 0:00:19]}  Qxb4 {[%clk 0:00:06]} 39. Rb1 {[%clk 0:00:14]}  Qd6 {[%clk 0:00:05]} 40. Rd4 {[%clk 0:00:14]}  Rxd4 {[%clk 0:00:05]} 41. exd4 {[%clk 0:00:14]}  Qxd4 {[%clk 0:00:05]} 42. Rxb7 {[%clk 0:00:15]}  Qd1 {[%clk 0:00:04]} 43. Qxd1 {[%clk 0:00:14]}  Rxd1+ {[%clk 0:00:05]} 44. Kg2 {[%clk 0:00:15]}  Ra1 {[%clk 0:00:05]} 45. Ra7 {[%clk 0:00:14]}  Kg4 {[%clk 0:00:03]} 46. a6 {[%clk 0:00:14]}  c5 {[%clk 0:00:03]} 47. Ra8 {[%clk 0:00:14]}  h4 {[%clk 0:00:03]} 48. a7 {[%clk 0:00:14]}  h3+ {[%clk 0:00:02]} 49. Kh2 {[%clk 0:00:14]}  Kf3 {[%clk 0:00:02]} 50. Rf8+ {[%clk 0:00:14]}  Ke2 {[%clk 0:00:02]} 51. a8=Q {[%clk 0:00:15]}  Rxa8 {[%clk 0:00:02]} 52. Rxa8 {[%clk 0:00:15]}  Kxf2 {[%clk 0:00:00]} 53. Kxh3 {[%clk 0:00:15]} 1-0


[Site "https://www.chess.com"]

[Event "Titled Tuesday Blitz October 31 Early 2023"]
[White "Limontaite, Simona"]
[Black "Iskusnyh, Sergei"]
[WhiteFideId "12802506"]
[BlackFideId "4120027"]
[WhiteElo "2211"]
[BlackElo "2543"]
[Result "0-1"]
[Round "8"]
[TimeControl "180+1"]
[Date "2023.10.31"]
[WhiteClock "0:00:00"]
[BlackClock "0:00:16"]
[Board "142"]

1. d4 {[%clk 0:02:19]}  Nf6 {[%clk 0:02:58]} 2. c4 {[%clk 0:02:16]}  c5 {[%clk 0:02:55]} 3. d5 {[%clk 0:02:16]}  e6 {[%clk 0:02:55]} 4. Nc3 {[%clk 0:02:16]}  exd5 {[%clk 0:02:55]} 5. cxd5 {[%clk 0:02:16]}  d6 {[%clk 0:02:55]} 6. e4 {[%clk 0:02:17]}  g6 {[%clk 0:02:55]} 7. Nf3 {[%clk 0:02:17]}  a6 {[%clk 0:02:49]} 8. a4 {[%clk 0:02:16]}  Bg4 {[%clk 0:02:49]} 9. h3 {[%clk 0:02:16]}  Bxf3 {[%clk 0:02:49]} 10. Qxf3 {[%clk 0:02:17]}  Bg7 {[%clk 0:02:49]} 11. Bd3 {[%clk 0:02:16]}  O-O {[%clk 0:02:47]} 12. O-O {[%clk 0:02:16]}  Nbd7 {[%clk 0:02:44]} 13. Qd1 {[%clk 0:02:14]}  Re8 {[%clk 0:02:40]} 14. Re1 {[%clk 0:02:12]}  Qc7 {[%clk 0:02:23]} 15. Bf4 {[%clk 0:02:07]}  Nh5 {[%clk 0:02:22]} 16. Bh2 {[%clk 0:02:06]}  Be5 {[%clk 0:02:15]} 17. g3 {[%clk 0:01:59]}  Rab8 {[%clk 0:02:11]} 18. a5 {[%clk 0:01:56]}  b5 {[%clk 0:02:01]} 19. axb6 {[%clk 0:01:41]}  Rxb6 {[%clk 0:01:56]} 20. Na4 {[%clk 0:01:32]}  Rb4 {[%clk 0:01:52]} 21. Kh1 {[%clk 0:01:27]}  a5 {[%clk 0:01:36]} 22. f4 {[%clk 0:01:08]}  Bd4 {[%clk 0:01:33]} 23. g4 {[%clk 0:01:06]}  Nhf6 {[%clk 0:01:04]} 24. Re2 {[%clk 0:01:03]}  Reb8 {[%clk 0:00:55]} 25. Bc2 {[%clk 0:00:34]}  Qb7 {[%clk 0:00:40]} 26. Ra2 {[%clk 0:00:27]}  Nxd5 {[%clk 0:00:37]} 27. b3 {[%clk 0:00:15]}  Ne3 {[%clk 0:00:22]} 28. Rxe3 {[%clk 0:00:11]}  Bxe3 {[%clk 0:00:21]} 29. Qxd6 {[%clk 0:00:11]}  Rxe4 {[%clk 0:00:19]} 30. Bxe4 {[%clk 0:00:06]}  Qxe4+ {[%clk 0:00:20]} 31. Rg2 {[%clk 0:00:00]}  Rxb3 {[%clk 0:00:16]} 0-1


[Site "https://www.chess.com"]

[Event "Titled Tuesday Blitz October 31 Early 2023"]
[White "Terletsky, Oleg"]
[Black "Quirke, Jeffrey"]
[WhiteFideId "14116774"]
[BlackFideId "2013029"]
[WhiteElo "2486"]
[BlackElo "2206"]
[Result "1/2-1/2"]
[Round "8"]
[TimeControl "180+1"]
[Date "2023.10.31"]
[WhiteClock "0:00:14"]
[BlackClock "0:00:16"]
[Board "143"]

1. e4 {[%clk 0:03:00]}  e6 {[%clk 0:02:59]} 2. d4 {[%clk 0:03:00]}  d5 {[%clk 0:03:00]} 3. Nd2 {[%clk 0:03:00]}  c5 {[%clk 0:02:59]} 4. Ngf3 {[%clk 0:03:00]}  cxd4 {[%clk 0:02:58]} 5. exd5 {[%clk 0:02:59]}  Qxd5 {[%clk 0:02:57]} 6. Bc4 {[%clk 0:03:00]}  Qd7 {[%clk 0:02:56]} 7. O-O {[%clk 0:03:00]}  Nc6 {[%clk 0:02:56]} 8. Nb3 {[%clk 0:03:00]}  a6 {[%clk 0:02:56]} 9. Nbxd4 {[%clk 0:03:00]}  Nxd4 {[%clk 0:02:56]} 10. Nxd4 {[%clk 0:03:00]}  Qc7 {[%clk 0:02:55]} 11. Bb3 {[%clk 0:02:55]}  Bd6 {[%clk 0:02:55]} 12. Re1 {[%clk 0:02:54]}  Ne7 {[%clk 0:02:53]} 13. h4 {[%clk 0:02:38]}  O-O {[%clk 0:02:52]} 14. Qg4 {[%clk 0:02:35]}  e5 {[%clk 0:02:37]} 15. Ne6 {[%clk 0:02:13]}  Bxe6 {[%clk 0:02:31]} 16. Bxe6 {[%clk 0:02:12]}  fxe6 {[%clk 0:02:32]} 17. Qxe6+ {[%clk 0:02:11]}  Kh8 {[%clk 0:02:33]} 18. Bg5 {[%clk 0:02:05]}  Ng6 {[%clk 0:02:28]} 19. g3 {[%clk 0:02:00]}  Rae8 {[%clk 0:02:25]} 20. Qg4 {[%clk 0:02:00]}  Qc8 {[%clk 0:02:16]} 21. Qxc8 {[%clk 0:01:53]}  Rxc8 {[%clk 0:02:16]} 22. c3 {[%clk 0:01:51]}  h6 {[%clk 0:02:11]} 23. Rad1 {[%clk 0:01:35]}  Bc5 {[%clk 0:02:04]} 24. Be3 {[%clk 0:01:35]}  Bxe3 {[%clk 0:02:04]} 25. Rxe3 {[%clk 0:01:36]}  h5 {[%clk 0:01:43]} 26. Rd7 {[%clk 0:01:31]}  b5 {[%clk 0:01:35]} 27. Red3 {[%clk 0:01:17]}  Rf6 {[%clk 0:01:34]} 28. a3 {[%clk 0:01:08]}  Rcf8 {[%clk 0:01:34]} 29. Rd2 {[%clk 0:01:08]}  Kh7 {[%clk 0:01:32]} 30. Rc7 {[%clk 0:01:01]}  Kh6 {[%clk 0:01:29]} 31. Re2 {[%clk 0:00:52]}  R8f7 {[%clk 0:01:28]} 32. Rc5 {[%clk 0:00:49]}  Rd7 {[%clk 0:01:25]} 33. Kg2 {[%clk 0:00:47]}  Rd1 {[%clk 0:01:19]} 34. Rc8 {[%clk 0:00:43]}  Rfd6 {[%clk 0:01:13]} 35. Ra8 {[%clk 0:00:37]}  Rb1 {[%clk 0:01:10]} 36. Ra7 {[%clk 0:00:27]}  Rc1 {[%clk 0:00:43]} 37. Rb7 {[%clk 0:00:27]}  Rcd1 {[%clk 0:00:37]} 38. Ra7 {[%clk 0:00:27]}  Re6 {[%clk 0:00:37]} 39. Kf3 {[%clk 0:00:23]}  Rd3+ {[%clk 0:00:31]} 40. Ke4 {[%clk 0:00:21]}  Rd8 {[%clk 0:00:30]} 41. Ke3 {[%clk 0:00:20]}  Nf8 {[%clk 0:00:28]} 42. Rd2 {[%clk 0:00:17]}  Rxd2 {[%clk 0:00:28]} 43. Kxd2 {[%clk 0:00:18]}  Nh7 {[%clk 0:00:28]} 44. Ke3 {[%clk 0:00:18]}  Nf6 {[%clk 0:00:28]} 45. f3 {[%clk 0:00:18]}  Kg6 {[%clk 0:00:24]} 46. Rb7 {[%clk 0:00:16]}  Re7 {[%clk 0:00:20]} 47. Rxe7 {[%clk 0:00:14]}  Nd5+ {[%clk 0:00:20]} 48. Ke4 {[%clk 0:00:15]}  Nxe7 {[%clk 0:00:21]} 49. Kxe5 {[%clk 0:00:15]}  Kf7 {[%clk 0:00:20]} 50. g4 {[%clk 0:00:15]}  hxg4 {[%clk 0:00:19]} 51. fxg4 {[%clk 0:00:16]}  g6 {[%clk 0:00:18]} 52. h5 {[%clk 0:00:16]}  gxh5 {[%clk 0:00:18]} 53. gxh5 {[%clk 0:00:16]}  Ng8 {[%clk 0:00:16]} 54. Kd6 {[%clk 0:00:16]}  Nf6 {[%clk 0:00:14]} 55. h6 {[%clk 0:00:16]}  Kg6 {[%clk 0:00:13]} 56. Kc6 {[%clk 0:00:17]}  Kxh6 {[%clk 0:00:14]} 57. Kb6 {[%clk 0:00:17]}  Kg6 {[%clk 0:00:14]} 58. Kxa6 {[%clk 0:00:18]}  Kf5 {[%clk 0:00:15]} 59. Kxb5 {[%clk 0:00:19]}  Ke6 {[%clk 0:00:15]} 60. c4 {[%clk 0:00:19]}  Kd6 {[%clk 0:00:16]} 61. b4 {[%clk 0:00:19]}  Kc7 {[%clk 0:00:16]} 62. c5 {[%clk 0:00:20]}  Ne4 {[%clk 0:00:15]} 63. a4 {[%clk 0:00:20]}  Nc3+ {[%clk 0:00:14]} 64. Ka5 {[%clk 0:00:20]}  Kc6 {[%clk 0:00:15]} 65. b5+ {[%clk 0:00:15]}  Kxc5 {[%clk 0:00:15]} 66. b6 {[%clk 0:00:15]}  Kc6 {[%clk 0:00:15]} 67. Ka6 {[%clk 0:00:14]}  Nxa4 {[%clk 0:00:14]} 68. b7 {[%clk 0:00:14]}  Nc5+ {[%clk 0:00:15]} 69. Ka7 {[%clk 0:00:14]}  Nxb7 {[%clk 0:00:16]} 1/2-1/2


[Site "https://www.chess.com"]

[Event "Titled Tuesday Blitz October 31 Early 2023"]
[White "knightinshiningarmour16"]
[Black "Seletsky, Grigory"]
[BlackFideId "14112191"]
[WhiteElo "2161"]
[BlackElo "2472"]
[Result "0-1"]
[Round "8"]
[TimeControl "180+1"]
[Date "2023.10.31"]
[WhiteClock "0:00:46"]
[BlackClock "0:02:47"]
[Board "144"]

1. d4 {[%clk 0:00:57]}  c5 {[%clk 0:02:58]} 2. d5 {[%clk 0:00:57]}  e5 {[%clk 0:02:58]} 3. dxe6 {[%clk 0:00:56]}  fxe6 {[%clk 0:02:58]} 4. c4 {[%clk 0:00:56]}  Nc6 {[%clk 0:02:58]} 5. e3 {[%clk 0:00:56]}  Nf6 {[%clk 0:02:58]} 6. b3 {[%clk 0:00:56]}  d5 {[%clk 0:02:58]} 7. Bb2 {[%clk 0:00:55]}  Be7 {[%clk 0:02:57]} 8. Bxf6 {[%clk 0:00:54]}  Bxf6 {[%clk 0:02:56]} 9. Nd2 {[%clk 0:00:51]}  Bxa1 {[%clk 0:02:55]} 10. Qxa1 {[%clk 0:00:52]}  O-O {[%clk 0:02:54]} 11. Ne2 {[%clk 0:00:50]}  Nb4 {[%clk 0:02:47]} 12. Qb2 {[%clk 0:00:46]}  Nd3+ {[%clk 0:02:47]} 0-1


[Site "https://www.chess.com"]

[Event "Titled Tuesday Blitz October 31 Early 2023"]
[White "Van Essen, Mark"]
[Black "Fernandez Hernandez, Gerardo"]
[WhiteFideId "1012819"]
[BlackFideId "2207400"]
[WhiteElo "2307"]
[BlackElo "2154"]
[Result "1-0"]
[Round "8"]
[TimeControl "180+1"]
[Date "2023.10.31"]
[WhiteClock "0:01:05"]
[BlackClock "0:00:03"]
[Board "145"]

1. e4 {[%clk 0:03:00]}  e6 {[%clk 0:02:59]} 2. d4 {[%clk 0:03:00]}  d5 {[%clk 0:03:00]} 3. Nc3 {[%clk 0:03:00]}  Nc6 {[%clk 0:03:00]} 4. e5 {[%clk 0:02:52]}  f6 {[%clk 0:02:59]} 5. f4 {[%clk 0:02:49]}  fxe5 {[%clk 0:03:00]} 6. fxe5 {[%clk 0:02:49]}  Qh4+ {[%clk 0:03:00]} 7. g3 {[%clk 0:02:43]}  Qxd4 {[%clk 0:03:00]} 8. Bf4 {[%clk 0:02:40]}  g5 {[%clk 0:02:33]} 9. Qh5+ {[%clk 0:02:35]}  Kd7 {[%clk 0:02:26]} 10. Nf3 {[%clk 0:02:25]}  Qb4 {[%clk 0:02:17]} 11. O-O-O {[%clk 0:02:14]}  gxf4 {[%clk 0:01:51]} 12. Bh3 {[%clk 0:02:14]}  Nge7 {[%clk 0:01:23]} 13. Nxd5 {[%clk 0:02:06]}  Nxd5 {[%clk 0:01:23]} 14. Rxd5+ {[%clk 0:02:04]}  Bd6 {[%clk 0:01:13]} 15. Qf7+ {[%clk 0:01:57]}  Ne7 {[%clk 0:01:12]} 16. exd6 {[%clk 0:01:54]}  cxd6 {[%clk 0:00:53]} 17. Rhd1 {[%clk 0:01:54]}  Kc6 {[%clk 0:00:30]} 18. Rxd6+ {[%clk 0:01:45]}  Qxd6 {[%clk 0:00:28]} 19. Rxd6+ {[%clk 0:01:46]}  Kxd6 {[%clk 0:00:29]} 20. Qxf4+ {[%clk 0:01:45]}  Kc6 {[%clk 0:00:14]} 21. Ne5+ {[%clk 0:01:29]}  Kb6 {[%clk 0:00:12]} 22. Qb4+ {[%clk 0:01:26]}  Kc7 {[%clk 0:00:10]} 23. Qxe7+ {[%clk 0:01:27]}  Kb6 {[%clk 0:00:09]} 24. Bxe6 {[%clk 0:01:24]}  a6 {[%clk 0:00:08]} 25. Nc4+ {[%clk 0:01:18]}  Ka7 {[%clk 0:00:07]} 26. Qc5+ {[%clk 0:01:18]}  Kb8 {[%clk 0:00:06]} 27. Bxc8 {[%clk 0:01:12]}  Rxc8 {[%clk 0:00:05]} 28. Qd6+ {[%clk 0:01:12]}  Ka7 {[%clk 0:00:05]} 29. Nb6 {[%clk 0:01:07]}  Rc6 {[%clk 0:00:05]} 30. Qxc6 {[%clk 0:01:05]}  bxc6 {[%clk 0:00:05]} 31. Nxa8 {[%clk 0:01:05]}  Kxa8 {[%clk 0:00:03]} 32. Kd2 {[%clk 0:01:05]} 1-0


[Site "https://www.chess.com"]

[Event "Titled Tuesday Blitz October 31 Early 2023"]
[White "Mr_November18"]
[Black "Pein, Jonathan"]
[BlackFideId "417092"]
[WhiteElo "2125"]
[BlackElo "2306"]
[Result "1-0"]
[Round "8"]
[TimeControl "180+1"]
[Date "2023.10.31"]
[WhiteClock "0:00:56"]
[BlackClock "0:00:08"]
[Board "146"]

1. e4 {[%clk 0:03:00]}  c6 {[%clk 0:02:52]} 2. d4 {[%clk 0:02:52]}  d5 {[%clk 0:02:52]} 3. f3 {[%clk 0:02:52]}  g6 {[%clk 0:02:50]} 4. e5 {[%clk 0:02:50]}  Bg7 {[%clk 0:02:50]} 5. f4 {[%clk 0:02:51]}  h5 {[%clk 0:02:50]} 6. Nf3 {[%clk 0:02:51]}  Nh6 {[%clk 0:02:51]} 7. Bd3 {[%clk 0:02:50]}  Bf5 {[%clk 0:02:50]} 8. O-O {[%clk 0:02:49]}  O-O {[%clk 0:02:50]} 9. Be3 {[%clk 0:02:49]}  Nd7 {[%clk 0:02:42]} 10. Nh4 {[%clk 0:02:47]}  Bxd3 {[%clk 0:02:42]} 11. Qxd3 {[%clk 0:02:46]}  e6 {[%clk 0:02:43]} 12. g3 {[%clk 0:02:45]}  c5 {[%clk 0:02:43]} 13. c3 {[%clk 0:02:45]}  cxd4 {[%clk 0:02:42]} 14. Bxd4 {[%clk 0:02:41]}  Qc7 {[%clk 0:02:41]} 15. Nd2 {[%clk 0:02:40]}  b5 {[%clk 0:02:39]} 16. Nxg6 {[%clk 0:02:36]}  fxg6 {[%clk 0:02:35]} 17. Qxg6 {[%clk 0:02:36]}  Rae8 {[%clk 0:02:26]} 18. Qxh5 {[%clk 0:02:34]}  Nb6 {[%clk 0:01:54]} 19. Nf3 {[%clk 0:02:31]}  Qf7 {[%clk 0:01:52]} 20. Qh4 {[%clk 0:02:28]}  Nf5 {[%clk 0:01:51]} 21. Qh3 {[%clk 0:02:25]}  Nc4 {[%clk 0:01:48]} 22. Ng5 {[%clk 0:02:24]}  Qg6 {[%clk 0:01:49]} 23. Rf2 {[%clk 0:02:21]}  Nxe5 {[%clk 0:01:43]} 24. Nxe6 {[%clk 0:02:01]}  Rxe6 {[%clk 0:01:17]} 25. fxe5 {[%clk 0:02:00]}  Qh6 {[%clk 0:00:24]} 26. Qg4 {[%clk 0:01:50]}  Rg6 {[%clk 0:00:20]} 27. Qd1 {[%clk 0:01:33]}  Qh3 {[%clk 0:00:20]} 28. Qf1 {[%clk 0:01:26]}  Nxg3 {[%clk 0:00:15]} 29. Rxf8+ {[%clk 0:01:23]}  Bxf8 {[%clk 0:00:16]} 30. Qxh3 {[%clk 0:01:09]}  Nh5+ {[%clk 0:00:10]} 31. Kf1 {[%clk 0:01:01]}  Nf4 {[%clk 0:00:11]} 32. Qf5 {[%clk 0:00:56]}  Bh6 {[%clk 0:00:08]} 1-0


[Site "https://www.chess.com"]

[Event "Titled Tuesday Blitz October 31 Early 2023"]
[White "dontcatchmeifyoucant"]
[Black "Viskelis, Darius"]
[BlackFideId "12800830"]
[WhiteElo "2120"]
[BlackElo "2295"]
[Result "0-1"]
[Round "8"]
[TimeControl "180+1"]
[Date "2023.10.31"]
[WhiteClock "0:00:00"]
[BlackClock "0:00:47"]
[Board "147"]

1. e4 {[%clk 0:03:00]}  c6 {[%clk 0:02:58]} 2. d4 {[%clk 0:02:55]}  g6 {[%clk 0:02:57]} 3. Nc3 {[%clk 0:02:53]}  Bg7 {[%clk 0:02:57]} 4. Be3 {[%clk 0:02:36]}  d5 {[%clk 0:02:56]} 5. e5 {[%clk 0:02:36]}  Nh6 {[%clk 0:02:55]} 6. f4 {[%clk 0:02:35]}  O-O {[%clk 0:02:45]} 7. Nf3 {[%clk 0:02:35]}  Nf5 {[%clk 0:02:41]} 8. Bf2 {[%clk 0:02:35]}  h5 {[%clk 0:02:41]} 9. Bd3 {[%clk 0:02:30]}  c5 {[%clk 0:02:25]} 10. dxc5 {[%clk 0:02:24]}  Nc6 {[%clk 0:02:25]} 11. Bxf5 {[%clk 0:01:32]}  Bxf5 {[%clk 0:02:26]} 12. Nxd5 {[%clk 0:01:31]}  e6 {[%clk 0:02:13]} 13. Ne3 {[%clk 0:01:29]}  Qa5+ {[%clk 0:02:00]} 14. c3 {[%clk 0:01:12]}  Rfd8 {[%clk 0:01:57]} 15. Qb3 {[%clk 0:00:54]}  Bd3 {[%clk 0:01:55]} 16. Nc4 {[%clk 0:00:47]}  Qc7 {[%clk 0:01:39]} 17. Nd6 {[%clk 0:00:35]}  Na5 {[%clk 0:01:39]} 18. Qb4 {[%clk 0:00:25]}  Qc6 {[%clk 0:01:29]} 19. O-O-O {[%clk 0:00:16]}  Be2 {[%clk 0:01:22]} 20. Qxa5 {[%clk 0:00:15]}  b6 {[%clk 0:01:10]} 21. Qa3 {[%clk 0:00:11]}  Bxf3 {[%clk 0:01:08]} 22. gxf3 {[%clk 0:00:10]}  Qxf3 {[%clk 0:01:09]} 23. Bg3 {[%clk 0:00:10]}  h4 {[%clk 0:01:08]} 24. Be1 {[%clk 0:00:06]}  Qxh1 {[%clk 0:01:07]} 25. Bxh4 {[%clk 0:00:06]}  Qxh2 {[%clk 0:01:04]} 26. Bxd8 {[%clk 0:00:06]}  Qxf4+ {[%clk 0:01:04]} 27. Kb1 {[%clk 0:00:05]}  Rxd8 {[%clk 0:01:05]} 28. Qxa7 {[%clk 0:00:04]}  bxc5 {[%clk 0:01:02]} 29. Qe7 {[%clk 0:00:03]}  Rf8 {[%clk 0:00:58]} 30. Nb5 {[%clk 0:00:01]}  Qxe5 {[%clk 0:00:52]} 31. Nc7 {[%clk 0:00:00]}  Qe4+ {[%clk 0:00:47]} 0-1


[Site "https://www.chess.com"]

[Event "Titled Tuesday Blitz October 31 Early 2023"]
[White "Sarkar, Justin"]
[Black "Mirza, Diana"]
[WhiteFideId "2010011"]
[BlackFideId "2503999"]
[WhiteElo "2245"]
[BlackElo "1948"]
[Result "0-1"]
[Round "8"]
[TimeControl "180+1"]
[Date "2023.10.31"]
[WhiteClock "0:00:00"]
[BlackClock "0:00:22"]
[Board "148"]

1. e4 {[%clk 0:02:38]}  d5 {[%clk 0:02:52]} 2. exd5 {[%clk 0:02:36]}  Qxd5 {[%clk 0:02:53]} 3. Nc3 {[%clk 0:02:36]}  Qd8 {[%clk 0:02:53]} 4. Nf3 {[%clk 0:02:21]}  Nf6 {[%clk 0:02:54]} 5. d4 {[%clk 0:02:18]}  Bg4 {[%clk 0:02:55]} 6. h3 {[%clk 0:02:15]}  Bxf3 {[%clk 0:02:54]} 7. Qxf3 {[%clk 0:02:14]}  c6 {[%clk 0:02:55]} 8. Be3 {[%clk 0:02:06]}  e6 {[%clk 0:02:55]} 9. O-O-O {[%clk 0:02:01]}  Bb4 {[%clk 0:02:54]} 10. Bg5 {[%clk 0:01:31]}  Nbd7 {[%clk 0:02:39]} 11. Kb1 {[%clk 0:01:27]}  Qa5 {[%clk 0:02:38]} 12. Bd2 {[%clk 0:01:17]}  Nb6 {[%clk 0:02:26]} 13. a3 {[%clk 0:01:12]}  Bxa3 {[%clk 0:02:15]} 14. bxa3 {[%clk 0:01:09]}  Qxa3 {[%clk 0:02:16]} 15. Ne4 {[%clk 0:00:52]}  Qe7 {[%clk 0:01:48]} 16. Nxf6+ {[%clk 0:00:50]}  gxf6 {[%clk 0:01:49]} 17. Qb3 {[%clk 0:00:45]}  O-O {[%clk 0:01:41]} 18. Bb4 {[%clk 0:00:43]}  Qd7 {[%clk 0:01:31]} 19. Bxf8 {[%clk 0:00:42]}  Kxf8 {[%clk 0:01:31]} 20. Be2 {[%clk 0:00:40]}  Nd5 {[%clk 0:01:29]} 21. c4 {[%clk 0:00:33]}  Nb6 {[%clk 0:01:19]} 22. Rhe1 {[%clk 0:00:31]}  Qc7 {[%clk 0:00:36]} 23. Bf3 {[%clk 0:00:27]}  a5 {[%clk 0:00:35]} 24. d5 {[%clk 0:00:23]}  a4 {[%clk 0:00:34]} 25. Qb4+ {[%clk 0:00:20]}  c5 {[%clk 0:00:33]} 26. d6 {[%clk 0:00:14]}  Qd7 {[%clk 0:00:30]} 27. Qxb6 {[%clk 0:00:11]}  a3 {[%clk 0:00:26]} 28. Qb5 {[%clk 0:00:04]}  a2+ {[%clk 0:00:25]} 29. Ka1 {[%clk 0:00:04]}  Qd8 {[%clk 0:00:22]} 30. d7 {[%clk 0:00:00]}  Ra5 {[%clk 0:00:22]} 0-1


[Site "https://www.chess.com"]

[Event "Titled Tuesday Blitz October 31 Early 2023"]
[White "Vila Dupla, Aurelio"]
[Black "Mohammadian,Mohammad"]
[WhiteFideId "2203383"]
[BlackFideId "12566055"]
[WhiteElo "2241"]
[BlackElo "1841"]
[Result "1-0"]
[Round "8"]
[TimeControl "180+1"]
[Date "2023.10.31"]
[WhiteClock "0:01:29"]
[BlackClock "0:00:47"]
[Board "149"]

1. Nf3 {[%clk 0:03:00]}  Nf6 {[%clk 0:02:59]} 2. d4 {[%clk 0:02:58]}  g6 {[%clk 0:02:56]} 3. g3 {[%clk 0:02:57]}  Bg7 {[%clk 0:02:55]} 4. Bg2 {[%clk 0:02:58]}  O-O {[%clk 0:02:55]} 5. O-O {[%clk 0:02:58]}  d5 {[%clk 0:02:54]} 6. c4 {[%clk 0:02:57]}  c6 {[%clk 0:02:54]} 7. cxd5 {[%clk 0:02:57]}  cxd5 {[%clk 0:02:54]} 8. Nc3 {[%clk 0:02:58]}  Nc6 {[%clk 0:02:52]} 9. Ne5 {[%clk 0:02:58]}  e6 {[%clk 0:02:49]} 10. Nxc6 {[%clk 0:02:57]}  bxc6 {[%clk 0:02:48]} 11. Na4 {[%clk 0:02:58]}  Nd7 {[%clk 0:02:27]} 12. Be3 {[%clk 0:02:56]}  Qa5 {[%clk 0:02:25]} 13. Rc1 {[%clk 0:02:52]}  Bb7 {[%clk 0:02:24]} 14. b3 {[%clk 0:02:48]}  Rac8 {[%clk 0:02:22]} 15. Qe1 {[%clk 0:02:44]}  Qxe1 {[%clk 0:02:19]} 16. Rfxe1 {[%clk 0:02:43]}  Rfe8 {[%clk 0:02:15]} 17. Red1 {[%clk 0:02:35]}  e5 {[%clk 0:02:15]} 18. dxe5 {[%clk 0:02:19]}  Bxe5 {[%clk 0:02:13]} 19. Bxa7 {[%clk 0:02:15]}  Bg7 {[%clk 0:02:03]} 20. e3 {[%clk 0:02:12]}  Ne5 {[%clk 0:01:59]} 21. Bd4 {[%clk 0:02:10]}  Ba6 {[%clk 0:01:46]} 22. Rc3 {[%clk 0:01:50]}  Be2 {[%clk 0:01:38]} 23. Rdc1 {[%clk 0:01:43]}  Bb5 {[%clk 0:01:28]} 24. Nc5 {[%clk 0:01:38]}  Nd7 {[%clk 0:01:18]} 25. Bxg7 {[%clk 0:01:36]}  Kxg7 {[%clk 0:01:15]} 26. Nxd7 {[%clk 0:01:35]}  c5 {[%clk 0:01:08]} 27. Rxc5 {[%clk 0:01:31]}  Bxd7 {[%clk 0:01:07]} 28. Rxc8 {[%clk 0:01:31]}  Rxc8 {[%clk 0:01:06]} 29. Rxc8 {[%clk 0:01:30]}  Bxc8 {[%clk 0:01:06]} 30. Bxd5 {[%clk 0:01:31]}  Ba6 {[%clk 0:01:04]} 31. a4 {[%clk 0:01:28]}  f6 {[%clk 0:01:04]} 32. b4 {[%clk 0:01:29]}  Kf8 {[%clk 0:01:04]} 33. b5 {[%clk 0:01:29]}  Bc8 {[%clk 0:01:03]} 34. b6 {[%clk 0:01:29]}  Ke7 {[%clk 0:00:53]} 35. b7 {[%clk 0:01:29]}  Bxb7 {[%clk 0:00:47]} 36. Bxb7 {[%clk 0:01:29]} 1-0


[Site "https://www.chess.com"]